[Event "Titled Tuesday Blitz November 01 Early 2022"]
[White "Molina, Roberto Junio Brito"]
[Black "Tleptsok, Ruslan"]
[WhiteFideId "2109450"]
[BlackFideId "24104485"]
[WhiteElo "2388"]
[BlackElo "2130"]
[Result "1/2-1/2"]
[Round "10"]
[TimeControl "180+1"]
[Date "2022.11.01"]
[WhiteClock "0:00:54"]
[BlackClock "0:00:54"]

1. d4 {[%clk 0:03:00]}  Nf6 {[%clk 0:02:59]} 2. Nf3 {[%clk 0:03:00]}  c5 {[%clk 0:02:59]} 3. e3 {[%clk 0:03:00]}  cxd4 {[%clk 0:02:59]} 4. exd4 {[%clk 0:03:01]}  d5 {[%clk 0:02:59]} 5. Bd3 {[%clk 0:03:01]}  Nc6 {[%clk 0:02:58]} 6. c3 {[%clk 0:03:02]}  Bg4 {[%clk 0:02:57]} 7. Bf4 {[%clk 0:03:02]}  Nh5 {[%clk 0:02:51]} 8. Be3 {[%clk 0:03:01]}  Nf6 {[%clk 0:02:51]} 9. Nbd2 {[%clk 0:03:00]}  Qb6 {[%clk 0:02:50]} 10. Qb3 {[%clk 0:02:59]}  e6 {[%clk 0:02:48]} 11. Qxb6 {[%clk 0:02:57]}  axb6 {[%clk 0:02:49]} 12. Bb5 {[%clk 0:02:54]}  Nd7 {[%clk 0:02:43]} 13. Bf4 {[%clk 0:02:53]}  f6 {[%clk 0:02:39]} 14. O-O {[%clk 0:02:52]}  g5 {[%clk 0:02:37]} 15. Bg3 {[%clk 0:02:51]}  h5 {[%clk 0:02:35]} 16. h3 {[%clk 0:02:51]}  Bf5 {[%clk 0:02:34]} 17. Rfe1 {[%clk 0:02:50]}  Kf7 {[%clk 0:02:32]} 18. Nf1 {[%clk 0:02:43]}  h4 {[%clk 0:02:27]} 19. Bh2 {[%clk 0:02:43]}  g4 {[%clk 0:02:26]} 20. hxg4 {[%clk 0:02:41]}  Bxg4 {[%clk 0:02:27]} 21. N3d2 {[%clk 0:02:40]}  Bh6 {[%clk 0:02:25]} 22. Ne3 {[%clk 0:02:36]}  Bh5 {[%clk 0:02:21]} 23. c4 {[%clk 0:02:26]}  Nxd4 {[%clk 0:02:00]} 24. Bxd7 {[%clk 0:02:24]}  Rhd8 {[%clk 0:02:00]} 25. Bb5 {[%clk 0:02:14]}  dxc4 {[%clk 0:01:59]} 26. Bxc4 {[%clk 0:02:09]}  b5 {[%clk 0:01:56]} 27. Bf1 {[%clk 0:02:06]}  Bxe3 {[%clk 0:01:52]} 28. fxe3 {[%clk 0:02:02]}  Nc2 {[%clk 0:01:52]} 29. Nb3 {[%clk 0:02:00]}  Nxe1 {[%clk 0:01:44]} 30. Rxe1 {[%clk 0:02:01]}  Rxa2 {[%clk 0:01:45]} 31. Nd4 {[%clk 0:01:55]}  Rxb2 {[%clk 0:01:42]} 32. Nxb5 {[%clk 0:01:51]}  Rdd2 {[%clk 0:01:38]} 33. Nd6+ {[%clk 0:01:51]}  Kg6 {[%clk 0:01:35]} 34. Nc4 {[%clk 0:01:51]}  Re2 {[%clk 0:01:11]} 35. Bxe2 {[%clk 0:01:50]}  Rxe2 {[%clk 0:01:10]} 36. Rxe2 {[%clk 0:01:46]}  Bxe2 {[%clk 0:01:11]} 37. Nd2 {[%clk 0:01:41]}  e5 {[%clk 0:01:09]} 38. Kf2 {[%clk 0:01:40]}  Bd3 {[%clk 0:01:06]} 39. e4 {[%clk 0:01:31]}  b5 {[%clk 0:01:05]} 40. Ke3 {[%clk 0:01:30]}  Bc2 {[%clk 0:01:05]} 41. Nf3 {[%clk 0:01:25]}  Kh5 {[%clk 0:01:03]} 42. Ne1 {[%clk 0:01:19]}  Bb1 {[%clk 0:01:01]} 43. Nd3 {[%clk 0:01:17]}  Bxd3 {[%clk 0:00:57]} 44. Kxd3 {[%clk 0:01:18]}  Kg4 {[%clk 0:00:57]} 45. Kc3 {[%clk 0:01:03]}  h3 {[%clk 0:00:56]} 46. gxh3+ {[%clk 0:00:54]}  Kxh3 {[%clk 0:00:56]} 47. Bg1 {[%clk 0:00:54]}  Kg2 {[%clk 0:00:54]} 48. Bc5 {[%clk 0:00:54]}  Kf3 {[%clk 0:00:54]} 49. Be7 {[%clk 0:00:54]}  Kxe4 {[%clk 0:00:53]} 50. Bxf6 {[%clk 0:00:54]}  Kf5 {[%clk 0:00:54]} 51. Bxe5 {[%clk 0:00:52]}  Kxe5 {[%clk 0:00:54]} 52. Kb4 {[%clk 0:00:53]}  Kd4 {[%clk 0:00:54]} 53. Kxb5 {[%clk 0:00:54]} 1/2-1/2


[Site "https://www.chess.com"]

[Event "Titled Tuesday Blitz November 01 Early 2022"]
[White "Najdin, Danil"]
[Black "Kosakowski, Jakub"]
[WhiteFideId "4172426"]
[BlackFideId "1185080"]
[WhiteElo "2240"]
[BlackElo "2463"]
[Result "0-1"]
[Round "10"]
[TimeControl "180+1"]
[Date "2022.11.02"]
[WhiteClock "0:01:12"]
[BlackClock "0:02:13"]

1. e4 {[%clk 0:03:00]}  c5 {[%clk 0:02:48]} 2. Nf3 {[%clk 0:03:00]}  Nc6 {[%clk 0:02:46]} 3. d4 {[%clk 0:03:00]}  cxd4 {[%clk 0:02:47]} 4. Nxd4 {[%clk 0:03:01]}  Nf6 {[%clk 0:02:47]} 5. Nc3 {[%clk 0:03:01]}  e5 {[%clk 0:02:48]} 6. Ndb5 {[%clk 0:03:01]}  d6 {[%clk 0:02:49]} 7. Bg5 {[%clk 0:02:59]}  a6 {[%clk 0:02:49]} 8. Na3 {[%clk 0:03:00]}  b5 {[%clk 0:02:49]} 9. Nd5 {[%clk 0:02:59]}  Be7 {[%clk 0:02:49]} 10. Bxf6 {[%clk 0:03:00]}  Bxf6 {[%clk 0:02:50]} 11. c3 {[%clk 0:03:01]}  Bg5 {[%clk 0:02:50]} 12. Nc2 {[%clk 0:03:01]}  Rb8 {[%clk 0:02:50]} 13. a4 {[%clk 0:02:43]}  bxa4 {[%clk 0:02:49]} 14. Ncb4 {[%clk 0:02:40]}  Nxb4 {[%clk 0:02:48]} 15. cxb4 {[%clk 0:02:39]}  O-O {[%clk 0:02:41]} 16. Rxa4 {[%clk 0:02:36]}  a5 {[%clk 0:02:41]} 17. h4 {[%clk 0:02:04]}  Bh6 {[%clk 0:02:37]} 18. g4 {[%clk 0:02:03]}  Bf4 {[%clk 0:02:24]} 19. bxa5 {[%clk 0:01:51]}  Rxb2 {[%clk 0:02:19]} 20. Nxf4 {[%clk 0:01:51]}  exf4 {[%clk 0:02:18]} 21. Qa1 {[%clk 0:01:26]}  Qf6 {[%clk 0:02:13]} 22. g5 {[%clk 0:01:12]}  Qc3+ {[%clk 0:02:13]} 0-1


[Site "https://www.chess.com"]

[Event "Titled Tuesday Blitz November 01 Early 2022"]
[White "Nozdrachev, Leonid"]
[Black "Belozerov, Andrei"]
[WhiteFideId "24113433"]
[BlackFideId "4120213"]
[WhiteElo "2249"]
[BlackElo "2360"]
[Result "1-0"]
[Round "10"]
[TimeControl "180+1"]
[Date "2022.11.02"]
[WhiteClock "0:00:15"]
[BlackClock "0:00:13"]

1. e4 {[%clk 0:02:12]}  c6 {[%clk 0:02:59]} 2. Nf3 {[%clk 0:02:10]}  d5 {[%clk 0:02:59]} 3. Nc3 {[%clk 0:02:08]}  dxe4 {[%clk 0:02:58]} 4. Nxe4 {[%clk 0:02:09]}  Nf6 {[%clk 0:02:57]} 5. Qe2 {[%clk 0:02:09]}  Nxe4 {[%clk 0:02:57]} 6. Qxe4 {[%clk 0:02:09]}  Qd5 {[%clk 0:02:57]} 7. Qe3 {[%clk 0:02:03]}  Qe6 {[%clk 0:02:54]} 8. Bd3 {[%clk 0:01:58]}  g6 {[%clk 0:02:48]} 9. Ng5 {[%clk 0:01:53]}  Qxe3+ {[%clk 0:02:47]} 10. fxe3 {[%clk 0:01:54]}  Bg7 {[%clk 0:02:46]} 11. O-O {[%clk 0:01:54]}  O-O {[%clk 0:02:44]} 12. Bc4 {[%clk 0:01:54]}  e6 {[%clk 0:02:43]} 13. d4 {[%clk 0:01:47]}  Nd7 {[%clk 0:02:38]} 14. c3 {[%clk 0:01:46]}  Nb6 {[%clk 0:02:32]} 15. Bb3 {[%clk 0:01:46]}  h6 {[%clk 0:02:15]} 16. Ne4 {[%clk 0:01:42]}  e5 {[%clk 0:02:08]} 17. Nd6 {[%clk 0:01:38]}  Be6 {[%clk 0:01:54]} 18. Nxb7 {[%clk 0:01:34]}  Bc4 {[%clk 0:01:50]} 19. Rf2 {[%clk 0:01:29]}  f5 {[%clk 0:01:39]} 20. Na5 {[%clk 0:01:25]}  Bxb3 {[%clk 0:01:31]} 21. axb3 {[%clk 0:01:26]}  Rac8 {[%clk 0:01:17]} 22. Nb7 {[%clk 0:01:21]}  Rc7 {[%clk 0:01:14]} 23. Nc5 {[%clk 0:01:21]}  Re8 {[%clk 0:01:11]} 24. Bd2 {[%clk 0:01:21]}  f4 {[%clk 0:01:08]} 25. Re1 {[%clk 0:01:14]}  Rce7 {[%clk 0:00:59]} 26. dxe5 {[%clk 0:01:09]}  fxe3 {[%clk 0:00:47]} 27. Rxe3 {[%clk 0:01:08]}  Nd5 {[%clk 0:00:46]} 28. Re4 {[%clk 0:01:03]}  Rxe5 {[%clk 0:00:46]} 29. Rfe2 {[%clk 0:00:58]}  Kf7 {[%clk 0:00:28]} 30. Rxe5 {[%clk 0:00:55]}  Bxe5 {[%clk 0:00:29]} 31. Ne4 {[%clk 0:00:47]}  g5 {[%clk 0:00:19]} 32. g3 {[%clk 0:00:44]}  Bc7 {[%clk 0:00:14]} 33. Kg2 {[%clk 0:00:34]}  Rc8 {[%clk 0:00:14]} 34. Nc5 {[%clk 0:00:29]}  Bb6 {[%clk 0:00:13]} 35. Nd7 {[%clk 0:00:28]}  Rc7 {[%clk 0:00:09]} 36. Ne5+ {[%clk 0:00:27]}  Kg7 {[%clk 0:00:10]} 37. c4 {[%clk 0:00:28]}  Nf6 {[%clk 0:00:08]} 38. Bc3 {[%clk 0:00:28]}  Kg8 {[%clk 0:00:07]} 39. Ng6 {[%clk 0:00:22]}  Ng4 {[%clk 0:00:06]} 40. Re6 {[%clk 0:00:18]}  Ne3+ {[%clk 0:00:06]} 41. Kf3 {[%clk 0:00:18]}  Rf7+ {[%clk 0:00:05]} 42. Ke4 {[%clk 0:00:17]}  Ng4 {[%clk 0:00:04]} 43. Re8+ {[%clk 0:00:17]}  Kh7 {[%clk 0:00:03]} 44. Nf8+ {[%clk 0:00:17]}  Kg8 {[%clk 0:00:01]} 45. Ne6+ {[%clk 0:00:17]}  Kh7 {[%clk 0:00:02]} 46. Nf8+ {[%clk 0:00:13]}  Kg8 {[%clk 0:00:01]} 47. Nd7+ {[%clk 0:00:12]}  Kh7 {[%clk 0:00:02]} 48. Rh8+ {[%clk 0:00:10]}  Kg6 {[%clk 0:00:01]} 49. Nf8+ {[%clk 0:00:10]}  Kh5 {[%clk 0:00:01]} 50. Ne6 {[%clk 0:00:09]}  Nf2+ {[%clk 0:00:02]} 51. Ke5 {[%clk 0:00:08]}  Ng4+ {[%clk 0:00:02]} 52. Kd6 {[%clk 0:00:08]}  c5 {[%clk 0:00:02]} 53. Ng7+ {[%clk 0:00:07]}  Kg6 {[%clk 0:00:02]} 54. Ne8 {[%clk 0:00:07]}  Nf2 {[%clk 0:00:03]} 55. Rg8+ {[%clk 0:00:07]}  Kf5 {[%clk 0:00:03]} 56. Rh8 {[%clk 0:00:06]}  Ne4+ {[%clk 0:00:02]} 57. Kc6 {[%clk 0:00:06]}  Nxc3 {[%clk 0:00:02]} 58. bxc3 {[%clk 0:00:07]}  Ke4 {[%clk 0:00:03]} 59. Nd6+ {[%clk 0:00:07]}  Kd3 {[%clk 0:00:03]} 60. Nxf7 {[%clk 0:00:08]}  Kxc3 {[%clk 0:00:04]} 61. Kb5 {[%clk 0:00:08]}  Kxb3 {[%clk 0:00:04]} 62. Nd6 {[%clk 0:00:08]}  a5 {[%clk 0:00:03]} 63. Kxb6 {[%clk 0:00:08]}  a4 {[%clk 0:00:04]} 64. Nb5 {[%clk 0:00:09]}  a3 {[%clk 0:00:05]} 65. Nxa3 {[%clk 0:00:08]}  h5 {[%clk 0:00:06]} 66. Kxc5 {[%clk 0:00:09]}  h4 {[%clk 0:00:07]} 67. gxh4 {[%clk 0:00:09]}  g4 {[%clk 0:00:08]} 68. Rg8 {[%clk 0:00:09]}  Kc3 {[%clk 0:00:09]} 69. Rxg4 {[%clk 0:00:09]}  Kb2 {[%clk 0:00:09]} 70. Rg5 {[%clk 0:00:10]}  Kb3 {[%clk 0:00:10]} 71. Rg6 {[%clk 0:00:10]}  Ka4 {[%clk 0:00:10]} 72. Rg7 {[%clk 0:00:11]}  Kb3 {[%clk 0:00:10]} 73. Kd6 {[%clk 0:00:12]}  Kb2 {[%clk 0:00:08]} 74. c5 {[%clk 0:00:13]}  Kb3 {[%clk 0:00:09]} 75. h5 {[%clk 0:00:14]}  Ka4 {[%clk 0:00:10]} 76. h6 {[%clk 0:00:14]}  Ka5 {[%clk 0:00:11]} 77. c6 {[%clk 0:00:15]}  Kb4 {[%clk 0:00:11]} 78. c7 {[%clk 0:00:16]}  Kc3 {[%clk 0:00:12]} 79. c8=Q+ {[%clk 0:00:15]}  Kb4 {[%clk 0:00:13]} 80. Rb7+ {[%clk 0:00:15]} 1-0


[Site "https://www.chess.com"]

[Event "Titled Tuesday Blitz November 01 Early 2022"]
[White "Orzech, Dominik"]
[Black "Arbunic Castro, Giovanna"]
[WhiteFideId "1115065"]
[BlackFideId "3400549"]
[WhiteElo "2272"]
[BlackElo "1817"]
[Result "1-0"]
[Round "10"]
[TimeControl "180+1"]
[Date "2022.11.02"]
[WhiteClock "0:00:52"]
[BlackClock "0:00:23"]

1. d4 {[%clk 0:01:44]}  Nf6 {[%clk 0:02:57]} 2. Nf3 {[%clk 0:01:43]}  g6 {[%clk 0:02:57]} 3. c4 {[%clk 0:01:43]}  Bg7 {[%clk 0:02:57]} 4. Nc3 {[%clk 0:01:43]}  O-O {[%clk 0:02:56]} 5. Bg5 {[%clk 0:01:44]}  d6 {[%clk 0:02:54]} 6. e3 {[%clk 0:01:44]}  c5 {[%clk 0:02:53]} 7. Be2 {[%clk 0:01:43]}  cxd4 {[%clk 0:02:51]} 8. Nxd4 {[%clk 0:01:44]}  Nc6 {[%clk 0:02:50]} 9. O-O {[%clk 0:01:43]}  Qb6 {[%clk 0:02:41]} 10. Nb3 {[%clk 0:01:35]}  Rd8 {[%clk 0:02:37]} 11. Bxf6 {[%clk 0:01:33]}  Bxf6 {[%clk 0:02:34]} 12. Nd5 {[%clk 0:01:33]}  Qa6 {[%clk 0:02:25]} 13. Nc7 {[%clk 0:01:30]}  Qa4 {[%clk 0:02:16]} 14. Nxa8 {[%clk 0:01:31]}  Bxb2 {[%clk 0:02:06]} 15. Rb1 {[%clk 0:01:30]}  Qxa2 {[%clk 0:02:05]} 16. Bd3 {[%clk 0:01:23]}  Nb4 {[%clk 0:02:01]} 17. Nc7 {[%clk 0:01:21]}  d5 {[%clk 0:01:36]} 18. Nxd5 {[%clk 0:01:18]}  Nxd5 {[%clk 0:01:35]} 19. cxd5 {[%clk 0:01:19]}  Rxd5 {[%clk 0:01:34]} 20. Qc2 {[%clk 0:01:18]}  Bf5 {[%clk 0:00:56]} 21. Bxf5 {[%clk 0:00:59]}  gxf5 {[%clk 0:00:53]} 22. Rxb2 {[%clk 0:00:59]}  Qa4 {[%clk 0:00:51]} 23. Nd4 {[%clk 0:00:59]}  Qd7 {[%clk 0:00:48]} 24. Rc1 {[%clk 0:00:57]}  e5 {[%clk 0:00:44]} 25. Nxf5 {[%clk 0:00:56]}  e4 {[%clk 0:00:31]} 26. Qc8+ {[%clk 0:00:54]}  Qd8 {[%clk 0:00:24]} 27. Ne7+ {[%clk 0:00:53]}  Kf8 {[%clk 0:00:23]} 28. Nxd5 {[%clk 0:00:52]} 1-0


[Site "https://www.chess.com"]

[Event "Titled Tuesday Blitz November 01 Early 2022"]
[White "Piesik, Piotr"]
[Black "Vargas, Mauricio"]
[WhiteFideId "1136194"]
[BlackFideId "4404572"]
[WhiteElo "2323"]
[BlackElo "2025"]
[Result "1-0"]
[Round "10"]
[TimeControl "180+1"]
[Date "2022.11.02"]
[WhiteClock "0:01:38"]
[BlackClock "0:00:04"]

1. Nf3 {[%clk 0:03:00]}  d6 {[%clk 0:01:22]} 2. d4 {[%clk 0:02:37]}  Nf6 {[%clk 0:01:19]} 3. g3 {[%clk 0:02:36]}  g6 {[%clk 0:01:20]} 4. Bg2 {[%clk 0:02:37]}  Bg7 {[%clk 0:01:20]} 5. O-O {[%clk 0:02:38]}  O-O {[%clk 0:01:21]} 6. Nbd2 {[%clk 0:02:37]}  c6 {[%clk 0:01:22]} 7. e4 {[%clk 0:02:38]}  Qe8 {[%clk 0:01:16]} 8. Qe2 {[%clk 0:02:37]}  Kh8 {[%clk 0:01:12]} 9. a4 {[%clk 0:02:36]}  Ng4 {[%clk 0:01:12]} 10. h3 {[%clk 0:02:33]}  Nf6 {[%clk 0:01:12]} 11. b3 {[%clk 0:02:29]}  e6 {[%clk 0:01:11]} 12. Bb2 {[%clk 0:02:28]}  Ng8 {[%clk 0:01:09]} 13. Nc4 {[%clk 0:02:25]}  Qe7 {[%clk 0:00:56]} 14. Ba3 {[%clk 0:02:24]}  c5 {[%clk 0:00:53]} 15. Rad1 {[%clk 0:02:20]}  b6 {[%clk 0:00:49]} 16. dxc5 {[%clk 0:02:16]}  dxc5 {[%clk 0:00:43]} 17. e5 {[%clk 0:02:13]}  Bb7 {[%clk 0:00:41]} 18. Nd6 {[%clk 0:02:11]}  Bc6 {[%clk 0:00:35]} 19. Nd2 {[%clk 0:02:07]}  Rd8 {[%clk 0:00:33]} 20. N2c4 {[%clk 0:02:02]}  Nh6 {[%clk 0:00:23]} 21. Bc1 {[%clk 0:01:55]}  Nf5 {[%clk 0:00:22]} 22. Nxf7+ {[%clk 0:01:54]}  Qxf7 {[%clk 0:00:19]} 23. Rxd8+ {[%clk 0:01:54]}  Bf8 {[%clk 0:00:17]} 24. Bxc6 {[%clk 0:01:53]}  Nxc6 {[%clk 0:00:16]} 25. Rxa8 {[%clk 0:01:53]}  Kg7 {[%clk 0:00:15]} 26. c3 {[%clk 0:01:51]}  Be7 {[%clk 0:00:10]} 27. Qe4 {[%clk 0:01:43]}  Nd8 {[%clk 0:00:08]} 28. Rxa7 {[%clk 0:01:39]}  h5 {[%clk 0:00:04]} 29. Bg5 {[%clk 0:01:38]} 1-0


[Site "https://www.chess.com"]

[Event "Titled Tuesday Blitz November 01 Early 2022"]
[White "Pinheiro, Iung Alicio de O."]
[Black "Yurasova, Daria"]
[WhiteFideId "2104350"]
[BlackFideId "34146919"]
[WhiteElo "2283"]
[BlackElo "2044"]
[Result "0-1"]
[Round "10"]
[TimeControl "180+1"]
[Date "2022.11.02"]
[WhiteClock "0:00:15"]
[BlackClock "0:00:15"]

1. d4 {[%clk 0:03:00]}  d5 {[%clk 0:02:58]} 2. Bf4 {[%clk 0:02:59]}  Nf6 {[%clk 0:02:58]} 3. e3 {[%clk 0:02:57]}  Bf5 {[%clk 0:02:57]} 4. c4 {[%clk 0:02:56]}  e6 {[%clk 0:02:53]} 5. Nc3 {[%clk 0:02:56]}  c6 {[%clk 0:02:50]} 6. Qb3 {[%clk 0:02:56]}  Qb6 {[%clk 0:02:51]} 7. c5 {[%clk 0:02:57]}  Qxb3 {[%clk 0:02:51]} 8. axb3 {[%clk 0:02:57]}  Nbd7 {[%clk 0:02:50]} 9. b4 {[%clk 0:02:57]}  Nh5 {[%clk 0:02:50]} 10. Be5 {[%clk 0:02:22]}  f6 {[%clk 0:02:10]} 11. Bc7 {[%clk 0:02:01]}  Rc8 {[%clk 0:02:10]} 12. Bd6 {[%clk 0:01:50]}  Bxd6 {[%clk 0:02:10]} 13. cxd6 {[%clk 0:01:50]}  g5 {[%clk 0:02:09]} 14. Rxa7 {[%clk 0:01:49]}  O-O {[%clk 0:02:08]} 15. Rxb7 {[%clk 0:01:43]}  e5 {[%clk 0:02:08]} 16. Be2 {[%clk 0:01:27]}  Ng7 {[%clk 0:02:07]} 17. Nf3 {[%clk 0:01:26]}  e4 {[%clk 0:02:01]} 18. Nd2 {[%clk 0:01:26]}  Ne8 {[%clk 0:02:00]} 19. O-O {[%clk 0:01:13]}  Nxd6 {[%clk 0:02:00]} 20. Ra7 {[%clk 0:01:13]}  Be6 {[%clk 0:01:46]} 21. Nb3 {[%clk 0:00:59]}  Rb8 {[%clk 0:01:45]} 22. Na5 {[%clk 0:00:55]}  Rfc8 {[%clk 0:01:31]} 23. Na2 {[%clk 0:00:44]}  Nb6 {[%clk 0:01:04]} 24. Rc1 {[%clk 0:00:42]}  Bd7 {[%clk 0:01:03]} 25. h3 {[%clk 0:00:39]}  f5 {[%clk 0:01:00]} 26. b3 {[%clk 0:00:39]}  Be8 {[%clk 0:01:00]} 27. Rc5 {[%clk 0:00:38]}  Nf7 {[%clk 0:00:32]} 28. Nc3 {[%clk 0:00:36]}  Nd8 {[%clk 0:00:31]} 29. Na4 {[%clk 0:00:34]}  Ne6 {[%clk 0:00:29]} 30. Rc1 {[%clk 0:00:32]}  Nxa4 {[%clk 0:00:27]} 31. bxa4 {[%clk 0:00:32]}  Rxb4 {[%clk 0:00:27]} 32. Ra1 {[%clk 0:00:28]}  c5 {[%clk 0:00:23]} 33. dxc5 {[%clk 0:00:26]}  Nxc5 {[%clk 0:00:24]} 34. Bb5 {[%clk 0:00:16]}  Bxb5 {[%clk 0:00:21]} 35. axb5 {[%clk 0:00:17]}  Rxb5 {[%clk 0:00:21]} 36. Nb7 {[%clk 0:00:17]}  Rxb7 {[%clk 0:00:21]} 37. R7a5 {[%clk 0:00:17]}  Nb3 {[%clk 0:00:20]} 38. Ra8 {[%clk 0:00:14]}  Rxa8 {[%clk 0:00:18]} 39. Rxa8+ {[%clk 0:00:15]}  Kf7 {[%clk 0:00:19]} 40. Rd8 {[%clk 0:00:15]}  Ke6 {[%clk 0:00:19]} 41. Rg8 {[%clk 0:00:16]}  h6 {[%clk 0:00:19]} 42. Rh8 {[%clk 0:00:16]}  Rg7 {[%clk 0:00:15]} 43. Rxh6+ {[%clk 0:00:16]}  Ke5 {[%clk 0:00:16]} 44. Rh8 {[%clk 0:00:16]}  Re7 {[%clk 0:00:14]} 45. Rg8 {[%clk 0:00:16]}  Kf6 {[%clk 0:00:15]} 46. Rf8+ {[%clk 0:00:16]}  Kg6 {[%clk 0:00:15]} 47. Rd8 {[%clk 0:00:16]}  Re5 {[%clk 0:00:14]} 48. Rd6+ {[%clk 0:00:16]}  Kf7 {[%clk 0:00:15]} 49. g3 {[%clk 0:00:16]}  Nc1 {[%clk 0:00:15]} 50. Kf1 {[%clk 0:00:16]}  Nd3 {[%clk 0:00:15]} 51. Kg2 {[%clk 0:00:16]}  Nb4 {[%clk 0:00:15]} 52. Rb6 {[%clk 0:00:16]}  Nd3 {[%clk 0:00:15]} 53. Rd6 {[%clk 0:00:16]}  Ke7 {[%clk 0:00:16]} 54. Rh6 {[%clk 0:00:16]}  Re6 {[%clk 0:00:16]} 55. Rh5 {[%clk 0:00:16]}  Kf6 {[%clk 0:00:16]} 56. Rh6+ {[%clk 0:00:16]}  Kf7 {[%clk 0:00:16]} 57. Rh5 {[%clk 0:00:15]}  Kg6 {[%clk 0:00:17]} 58. Rh8 {[%clk 0:00:15]}  Rb6 {[%clk 0:00:17]} 59. Rd8 {[%clk 0:00:15]}  Rb2 {[%clk 0:00:18]} 60. Rd6+ {[%clk 0:00:15]}  Kg7 {[%clk 0:00:17]} 61. Rxd5 {[%clk 0:00:16]}  Rxf2+ {[%clk 0:00:17]} 62. Kg1 {[%clk 0:00:16]}  Rf3 {[%clk 0:00:18]} 63. g4 {[%clk 0:00:16]}  Kf6 {[%clk 0:00:17]} 64. Kg2 {[%clk 0:00:15]}  fxg4 {[%clk 0:00:15]} 65. hxg4 {[%clk 0:00:15]}  Rxe3 {[%clk 0:00:14]} 66. Rf5+ {[%clk 0:00:15]}  Kg6 {[%clk 0:00:15]} 67. Rd5 {[%clk 0:00:15]}  Nf4+ {[%clk 0:00:15]} 0-1


[Site "https://www.chess.com"]

[Event "Titled Tuesday Blitz November 01 Early 2022"]
[White "Quirke, Jeffrey"]
[Black "Fernandez Hernandez, Gerardo"]
[WhiteFideId "2013029"]
[BlackFideId "2207400"]
[WhiteElo "2189"]
[BlackElo "2236"]
[Result "0-1"]
[Round "10"]
[TimeControl "180+1"]
[Date "2022.11.02"]
[WhiteClock "0:00:17"]
[BlackClock "0:00:27"]

1. e4 {[%clk 0:03:00]}  e6 {[%clk 0:02:59]} 2. d4 {[%clk 0:02:59]}  d5 {[%clk 0:03:00]} 3. Bd3 {[%clk 0:02:59]}  c5 {[%clk 0:02:58]} 4. exd5 {[%clk 0:02:56]}  exd5 {[%clk 0:02:59]} 5. Nf3 {[%clk 0:02:54]}  c4 {[%clk 0:02:59]} 6. Be2 {[%clk 0:02:54]}  Nc6 {[%clk 0:02:58]} 7. O-O {[%clk 0:02:48]}  Bd6 {[%clk 0:02:57]} 8. Re1 {[%clk 0:02:47]}  Nge7 {[%clk 0:02:57]} 9. b3 {[%clk 0:02:47]}  cxb3 {[%clk 0:02:56]} 10. axb3 {[%clk 0:02:46]}  O-O {[%clk 0:02:56]} 11. h3 {[%clk 0:02:24]}  Bf5 {[%clk 0:02:50]} 12. c3 {[%clk 0:02:21]}  Re8 {[%clk 0:02:39]} 13. Be3 {[%clk 0:02:19]}  Qc7 {[%clk 0:02:24]} 14. Na3 {[%clk 0:02:14]}  a6 {[%clk 0:02:18]} 15. Nc2 {[%clk 0:02:12]}  Na5 {[%clk 0:01:57]} 16. b4 {[%clk 0:01:27]}  Qxc3 {[%clk 0:01:43]} 17. bxa5 {[%clk 0:01:24]}  Qxc2 {[%clk 0:01:37]} 18. Qxc2 {[%clk 0:01:24]}  Bxc2 {[%clk 0:01:38]} 19. Rec1 {[%clk 0:01:23]}  Rac8 {[%clk 0:01:22]} 20. Ne1 {[%clk 0:01:17]}  Be4 {[%clk 0:01:17]} 21. Nd3 {[%clk 0:01:10]}  Nf5 {[%clk 0:01:08]} 22. Rxc8 {[%clk 0:00:51]}  Rxc8 {[%clk 0:01:08]} 23. Rc1 {[%clk 0:00:39]}  Rxc1+ {[%clk 0:01:06]} 24. Nxc1 {[%clk 0:00:38]}  Nxe3 {[%clk 0:00:59]} 25. fxe3 {[%clk 0:00:38]}  Bb4 {[%clk 0:00:59]} 26. Nb3 {[%clk 0:00:35]}  Bc2 {[%clk 0:00:57]} 27. Nc5 {[%clk 0:00:35]}  Bxa5 {[%clk 0:00:48]} 28. Nxb7 {[%clk 0:00:35]}  Bd2 {[%clk 0:00:48]} 29. Bxa6 {[%clk 0:00:31]}  Bxe3+ {[%clk 0:00:48]} 30. Kh1 {[%clk 0:00:28]}  Bxd4 {[%clk 0:00:47]} 31. Nd6 {[%clk 0:00:23]}  Be5 {[%clk 0:00:37]} 32. Nc8 {[%clk 0:00:18]}  d4 {[%clk 0:00:35]} 33. Ne7+ {[%clk 0:00:17]}  Kf8 {[%clk 0:00:35]} 34. Nc6 {[%clk 0:00:18]}  Bf6 {[%clk 0:00:32]} 35. Kg1 {[%clk 0:00:17]}  d3 {[%clk 0:00:27]} 0-1


[Site "https://www.chess.com"]

[Event "Titled Tuesday Blitz November 01 Early 2022"]
[White "Romero Ruscalleda, Josep"]
[Black "Myshakov, Fyodor"]
[WhiteFideId "2231859"]
[BlackFideId "14111284"]
[WhiteElo "2297"]
[BlackElo "2310"]
[Result "0-1"]
[Round "10"]
[TimeControl "180+1"]
[Date "2022.11.02"]
[WhiteClock "0:00:46"]
[BlackClock "0:00:56"]

1. e4 {[%clk 0:02:57]}  c6 {[%clk 0:02:54]} 2. Nc3 {[%clk 0:02:57]}  d5 {[%clk 0:02:54]} 3. Nf3 {[%clk 0:02:57]}  Bg4 {[%clk 0:02:53]} 4. h3 {[%clk 0:02:56]}  Bxf3 {[%clk 0:02:53]} 5. Qxf3 {[%clk 0:02:57]}  e6 {[%clk 0:02:54]} 6. d4 {[%clk 0:02:55]}  dxe4 {[%clk 0:02:54]} 7. Qxe4 {[%clk 0:02:56]}  Nf6 {[%clk 0:02:54]} 8. Qd3 {[%clk 0:02:56]}  Be7 {[%clk 0:02:54]} 9. g3 {[%clk 0:02:56]}  O-O {[%clk 0:02:54]} 10. Bg2 {[%clk 0:02:56]}  Nbd7 {[%clk 0:02:55]} 11. O-O {[%clk 0:02:56]}  Nb6 {[%clk 0:02:54]} 12. a4 {[%clk 0:02:55]}  Nbd5 {[%clk 0:02:54]} 13. a5 {[%clk 0:02:51]}  Nxc3 {[%clk 0:02:52]} 14. Qxc3 {[%clk 0:02:50]}  a6 {[%clk 0:02:52]} 15. Qb3 {[%clk 0:02:42]}  Qd7 {[%clk 0:02:45]} 16. c3 {[%clk 0:02:38]}  Rfe8 {[%clk 0:02:35]} 17. Re1 {[%clk 0:02:36]}  Rac8 {[%clk 0:02:34]} 18. Be3 {[%clk 0:02:31]}  h6 {[%clk 0:02:34]} 19. Rad1 {[%clk 0:02:27]}  Bd8 {[%clk 0:02:31]} 20. Qa2 {[%clk 0:02:18]}  Qc7 {[%clk 0:02:29]} 21. b4 {[%clk 0:02:17]}  Nd5 {[%clk 0:02:26]} 22. Bd2 {[%clk 0:02:14]}  Qd6 {[%clk 0:02:23]} 23. Qb3 {[%clk 0:02:07]}  Bg5 {[%clk 0:02:21]} 24. Bxg5 {[%clk 0:01:56]}  hxg5 {[%clk 0:02:19]} 25. Re2 {[%clk 0:01:46]}  Rcd8 {[%clk 0:02:14]} 26. Rde1 {[%clk 0:01:43]}  Qe7 {[%clk 0:01:58]} 27. Qc2 {[%clk 0:01:33]}  Qf6 {[%clk 0:01:55]} 28. Qd2 {[%clk 0:01:24]}  Re7 {[%clk 0:01:42]} 29. Re5 {[%clk 0:01:24]}  Red7 {[%clk 0:01:39]} 30. Rc1 {[%clk 0:01:11]}  Ne7 {[%clk 0:01:10]} 31. Qxg5 {[%clk 0:01:05]}  Qxg5 {[%clk 0:01:09]} 32. Rxg5 {[%clk 0:01:05]}  f6 {[%clk 0:01:09]} 33. Rg4 {[%clk 0:01:01]}  f5 {[%clk 0:01:08]} 34. Rf4 {[%clk 0:01:01]}  g5 {[%clk 0:01:07]} 35. Rf3 {[%clk 0:01:01]}  Kf7 {[%clk 0:01:07]} 36. Re3 {[%clk 0:01:01]}  Nd5 {[%clk 0:01:05]} 37. Re5 {[%clk 0:00:59]}  Re7 {[%clk 0:01:04]} 38. g4 {[%clk 0:00:54]}  fxg4 {[%clk 0:00:58]} 39. hxg4 {[%clk 0:00:51]}  Nf4 {[%clk 0:00:57]} 40. Rxg5 {[%clk 0:00:49]}  Ne2+ {[%clk 0:00:56]} 41. Kh2 {[%clk 0:00:48]}  Nxc1 {[%clk 0:00:57]} 42. Kg3 {[%clk 0:00:48]}  Ne2+ {[%clk 0:00:57]} 43. Kf3 {[%clk 0:00:48]}  Nxc3 {[%clk 0:00:57]} 44. Ke3 {[%clk 0:00:48]}  Nd5+ {[%clk 0:00:55]} 45. Kd3 {[%clk 0:00:46]}  Nf4+ {[%clk 0:00:55]} 46. Kc4 {[%clk 0:00:46]}  Nxg2 {[%clk 0:00:56]} 0-1


[Site "https://www.chess.com"]